[Event "Schack-SM 2022: Mastarklassen-Elit"]
[Site "Fyrishov, Idrottsgatan 2, Uppsala, Sweden"]
[Date "2022.07.09"]
[Round "8.4"]
[White "Engqvist, Thomas"]
[Black "Wiedenkeller, Michael"]
[Result "1-0"]
[TimeControl "90 minutes for 40 moves + 30 minutes for the rest of the game + 30 seconds per move from move one."]
[WhiteTitle "IM"]
[BlackTitle "IM"]
[WhiteFideId "1700332"]
[BlackFideId "1700146"]
[WhiteElo "2330"]
[BlackElo "2437"]

1. Nf3 {[%clk 01:30:57]} {[%emt 00:00:02]} d5 {[%clk 01:30:11]} {[%emt
00:00:50]} 2. g3 {[%clk 01:30:32]} {[%emt 00:00:55]} c6 {[%clk 01:29:52]}
{[%emt 00:00:48]} 3. Bg2 {[%clk 01:30:57]} {[%emt 00:00:06]} Bg4 {[%clk
01:29:56]} {[%emt 00:00:26]} 4. c4 {[%clk 01:30:04]} {[%emt 00:01:23]} Nf6
{[%clk 01:26:32]} {[%emt 00:03:54]} 5. Ne5 {[%clk 01:28:12]} {[%emt 00:02:21]}
Be6 {[%clk 01:21:58]} {[%emt 00:05:04]} 6. cxd5 {[%clk 01:28:25]} {[%emt
00:00:18]} Bxd5 {[%clk 01:22:21]} {[%emt 00:00:07]} 7. Nf3 {[%clk 01:28:49]}
{[%emt 00:00:05]} c5 {[%clk 01:22:04]} {[%emt 00:00:47]} 8. Nc3 {[%clk
01:28:32]} {[%emt 00:00:48]} Bc6 {[%clk 01:22:26]} {[%emt 00:00:08]} 9. O-O
{[%clk 01:28:20]} {[%emt 00:00:41]} Nbd7 {[%clk 01:19:20]} {[%emt 00:03:36]} 10.
d3 {[%clk 01:28:09]} {[%emt 00:00:41]} e6 {[%clk 01:16:00]} {[%emt 00:03:51]}
11. e4 {[%clk 01:28:33]} {[%emt 00:00:05]} Be7 {[%clk 01:13:44]} {[%emt
00:02:47]} 12. Ne1 {[%clk 01:17:31]} {[%emt 00:11:32]} O-O {[%clk 01:03:31]}
{[%emt 00:10:44]} 13. f4 {[%clk 01:17:22]} {[%emt 00:00:37]} b5 {[%clk
00:57:45]} {[%emt 00:06:17]} 14. e5 {[%clk 00:55:40]} {[%emt 00:22:12]} Nd5
{[%clk 00:55:37]} {[%emt 00:02:38]} 15. Nxd5 {[%clk 00:53:52]} {[%emt
00:02:18]} Bxd5 {[%clk 00:48:49]} {[%emt 00:07:18]} 16. Bxd5 {[%clk 00:53:53]}
{[%emt 00:00:29]} exd5 {[%clk 00:49:17]} {[%emt 00:00:02]} 17. Qb3 {[%clk
00:42:56]} {[%emt 00:11:27]} c4 {[%clk 00:34:49]} {[%emt 00:14:58]} 18. Qxb5
{[%clk 00:42:57]} {[%emt 00:00:29]} Nc5 {[%clk 00:33:32]} {[%emt 00:01:46]} 19.
dxc4 {[%clk 00:42:21]} {[%emt 00:01:07]} Rb8 {[%clk 00:33:08]} {[%emt
00:00:53]} 20. Qc6 {[%clk 00:42:45]} {[%emt 00:00:07]} dxc4 {[%clk 00:33:21]}
{[%emt 00:00:16]} 21. Be3 {[%clk 00:41:34]} {[%emt 00:01:41]} Qa5 {[%clk
00:21:07]} {[%emt 00:12:45]} 22. Qd5 {[%clk 00:31:58]} {[%emt 00:10:05]} Rxb2
{[%clk 00:18:35]} {[%emt 00:03:02]} 23. Qxc4 {[%clk 00:32:22]} {[%emt
00:00:07]} Nb3 {[%clk 00:13:47]} {[%emt 00:05:17]} 24. axb3 {[%clk 00:17:02]}
{[%emt 00:15:51]} Qxa1 {[%clk 00:14:08]} {[%emt 00:00:08]} 25. Bd4 {[%clk
00:17:11]} {[%emt 00:00:22]} Qa2 {[%clk 00:13:47]} {[%emt 00:00:51]} 26. Bxb2
{[%clk 00:16:58]} {[%emt 00:00:43]} Qxb2 {[%clk 00:14:11]} {[%emt 00:00:06]} 27.
Nf3 {[%clk 00:16:37]} {[%emt 00:00:52]} Qa3 {[%clk 00:10:40]} {[%emt 00:04:01]}
28. Rd1 {[%clk 00:12:21]} {[%emt 00:04:45]} Qc5+ {[%clk 00:07:24]} {[%emt
00:03:46]} 29. Qxc5 {[%clk 00:11:35]} {[%emt 00:01:17]} Bxc5+ {[%clk 00:07:52]}
{[%emt 00:00:01]} 30. Kg2 {[%clk 00:11:24]} {[%emt 00:00:42]} Rb8 {[%clk
00:05:54]} {[%emt 00:02:27]} 31. Rc1 {[%clk 00:10:23]} {[%emt 00:01:32]} Bb6
{[%clk 00:04:57]} {[%emt 00:01:27]} 32. Ng5 {[%clk 00:08:18]} {[%emt 00:02:35]}
f6 {[%clk 00:03:08]} {[%emt 00:02:19]} 33. exf6 {[%clk 00:08:35]} {[%emt
00:00:12]} gxf6 {[%clk 00:03:33]} {[%emt 00:00:05]} 34. Ne4 {[%clk 00:07:09]}
{[%emt 00:01:56]} Kf7 {[%clk 00:02:04]} {[%emt 00:01:59]} 35. Rc6 {[%clk
00:07:09]} {[%emt 00:00:31]} Bd8 {[%clk 00:01:57]} {[%emt 00:00:36]} 36. Nd6+
{[%clk 00:03:00]} {[%emt 00:04:39]} Ke6 {[%clk 00:00:50]} {[%emt 00:01:36]} 37.
Nb7+ {[%clk 00:03:26]} {[%emt 00:00:06]} Kd7 {[%clk 00:00:38]} {[%emt
00:00:41]} 38. Nxd8 {[%clk 00:03:38]} {[%emt 00:00:19]} Kxd8 {[%clk 00:00:59]}
{[%emt 00:00:09]} 39. Rxf6 {[%clk 00:03:47]} {[%emt 00:00:20]} Rxb3 {[%clk
00:01:28]} {[%emt 00:00:02]} 40. Rf7 {[%clk 00:03:58]} {[%emt 00:00:19]} a5
{[%clk 00:01:04]} {[%emt 00:00:54]} 41. Rxh7 {[%clk 00:04:17]} {[%emt
00:00:11]} Kc8 {[%clk 00:01:15]} {[%emt 00:00:19]} 42. f5 {[%clk 00:04:21]}
{[%emt 00:00:26]} Rb5 {[%clk 00:29:23]} {[%emt 00:02:22]} 43. f6 {[%clk
00:31:17]} {[%emt 00:03:34]} Rf5 {[%clk 00:29:32]} {[%emt 00:00:20]} 44. f7
{[%clk 00:30:47]} {[%emt 00:01:00]} Kd8 {[%clk 00:29:46]} {[%emt 00:00:17]} 45.
g4 {[%clk 00:31:12]} {[%emt 00:00:05]} Rf4 {[%clk 00:29:51]} {[%emt 00:00:24]}
46. Kg3 {[%clk 00:30:40]} {[%emt 00:01:02]} Rf1 {[%clk 00:30:06]} {[%emt
00:00:16]} 47. f8=Q+ {[%clk 00:24:36]} {[%emt 00:06:34]} Rxf8 {[%clk 00:30:28]}
{[%emt 00:00:08]} 48. Ra7 {[%clk 00:25:04]} {[%emt 00:00:02]} 1-0

[Event "Schack-SM 2022: Mastarklassen-Elit"]
[Site "Fyrishov, Idrottsgatan 2, Uppsala, Sweden"]
[Date "2022.07.09"]
[Round "8.5"]
[White "Cederstam, Carl"]
[Black "Furhoff, Johan"]
[Result "1/2-1/2"]
[TimeControl "90 minutes for 40 moves + 30 minutes for the rest of the game + 30 seconds per move from move one."]
[WhiteTitle "FM"]
[BlackTitle "IM"]
[WhiteFideId "1713329"]
[BlackFideId "1701797"]
[WhiteElo "2332"]
[BlackElo "2348"]

1. Nf3 {[%clk 01:30:13]} {[%emt 00:00:47]} d5 {[%clk 01:30:39]} {[%emt
00:00:21]} 2. d4 {[%clk 01:28:07]} {[%emt 00:02:35]} Nf6 {[%clk 01:30:59]}
{[%emt 00:00:10]} 3. c4 {[%clk 01:28:22]} {[%emt 00:00:16]} c6 {[%clk
01:31:21]} {[%emt 00:00:08]} 4. Nc3 {[%clk 01:28:39]} {[%emt 00:00:12]} e6
{[%clk 01:31:43]} {[%emt 00:00:09]} 5. Bg5 {[%clk 01:28:44]} {[%emt 00:00:24]}
h6 {[%clk 01:32:07]} {[%emt 00:00:06]} 6. Bxf6 {[%clk 01:28:50]} {[%emt
00:00:24]} Qxf6 {[%clk 01:32:28]} {[%emt 00:00:10]} 7. e3 {[%clk 01:29:01]}
{[%emt 00:00:18]} Nd7 {[%clk 01:32:15]} {[%emt 00:00:43]} 8. Bd3 {[%clk
01:28:03]} {[%emt 00:01:28]} g6 {[%clk 01:30:37]} {[%emt 00:02:08]} 9. O-O
{[%clk 01:28:19]} {[%emt 00:00:14]} Bg7 {[%clk 01:30:17]} {[%emt 00:00:50]} 10.
a4 {[%clk 01:13:54]} {[%emt 00:14:55]} O-O {[%clk 01:20:45]} {[%emt 00:10:02]}
11. a5 {[%clk 01:08:20]} {[%emt 00:06:04]} Qe7 {[%clk 01:15:07]} {[%emt
00:06:09]} 12. Qb3 {[%clk 00:59:45]} {[%emt 00:09:04]} Rb8 {[%clk 01:08:06]}
{[%emt 00:07:32]} 13. Rfd1 {[%clk 00:43:03]} {[%emt 00:17:11]} b6 {[%clk
00:58:31]} {[%emt 00:10:06]} 14. axb6 {[%clk 00:41:56]} {[%emt 00:01:36]} axb6
{[%clk 00:58:51]} {[%emt 00:00:10]} 15. Ra7 {[%clk 00:41:12]} {[%emt 00:01:15]}
Bb7 {[%clk 00:58:46]} {[%emt 00:00:35]} 16. e4 {[%clk 00:33:20]} {[%emt
00:08:22]} dxe4 {[%clk 00:32:57]} {[%emt 00:26:18]} 17. Bxe4 {[%clk 00:32:55]}
{[%emt 00:00:55]} f5 {[%clk 00:30:56]} {[%emt 00:02:32]} 18. Bc2 {[%clk
00:32:17]} {[%emt 00:01:03]} c5 {[%clk 00:29:43]} {[%emt 00:01:47]} 19. d5
{[%clk 00:28:28]} {[%emt 00:04:19]} e5 {[%clk 00:28:08]} {[%emt 00:02:06]} 20.
d6 {[%clk 00:23:49]} {[%emt 00:05:09]} Qd8 {[%clk 00:27:59]} {[%emt 00:00:39]}
21. Nd5 {[%clk 00:23:54]} {[%emt 00:00:24]} Kh7 {[%clk 00:26:10]} {[%emt
00:02:19]} 22. Ne7 {[%clk 00:23:05]} {[%emt 00:01:19]} Bf6 {[%clk 00:24:31]}
{[%emt 00:02:10]} 23. Qb5 {[%clk 00:10:50]} {[%emt 00:12:45]} Rf7 {[%clk
00:24:51]} {[%emt 00:00:09]} 24. Ba4 {[%clk 00:10:49]} {[%emt 00:00:31]} e4
{[%clk 00:21:10]} {[%emt 00:04:11]} 25. Qxd7 {[%clk 00:10:01]} {[%emt
00:01:19]} Qxd7 {[%clk 00:21:35]} {[%emt 00:00:05]} 26. Bxd7 {[%clk 00:10:23]}
{[%emt 00:00:07]} exf3 {[%clk 00:21:59]} {[%emt 00:00:06]} 27. Bc6 {[%clk
00:04:04]} {[%emt 00:06:48]} Bxe7 {[%clk 00:14:46]} {[%emt 00:07:45]} 28. dxe7
{[%clk 00:03:54]} {[%emt 00:00:40]} Rxe7 {[%clk 00:15:03]} {[%emt 00:00:13]} 29.
gxf3 {[%clk 00:03:56]} {[%emt 00:00:27]} Rg7 {[%clk 00:14:31]} {[%emt
00:01:02]} 30. Rd7 {[%clk 00:01:48]} {[%emt 00:02:38]} Rxd7 {[%clk 00:13:12]}
{[%emt 00:01:50]} 31. Bxd7 {[%clk 00:02:17]} {[%emt 00:00:01]} Kg8 {[%clk
00:12:02]} {[%emt 00:01:39]} 32. Kg2 {[%clk 00:02:31]} {[%emt 00:00:16]} f4
{[%clk 00:11:44]} {[%emt 00:00:49]} 33. h4 {[%clk 00:01:50]} {[%emt 00:01:11]}
Kf8 {[%clk 00:10:45]} {[%emt 00:01:29]} 34. Bb5 {[%clk 00:01:29]} {[%emt
00:00:51]} h5 {[%clk 00:09:24]} {[%emt 00:01:50]} 35. Bd7 {[%clk 00:01:47]}
{[%emt 00:00:12]} Bc8 {[%clk 00:09:05]} {[%emt 00:00:50]} 36. Rc7 {[%clk
00:01:33]} {[%emt 00:00:44]} Bxd7 {[%clk 00:09:12]} {[%emt 00:00:23]} 37. Rxd7
{[%clk 00:02:01]} {[%emt 00:00:02]} b5 {[%clk 00:09:34]} {[%emt 00:00:07]} 38.
Rh7 {[%clk 00:00:52]} {[%emt 00:01:39]} Rb6 {[%clk 00:09:21]} {[%emt 00:00:44]}
39. Rc7 {[%clk 00:00:55]} {[%emt 00:00:27]} bxc4 {[%clk 00:09:43]} {[%emt
00:00:08]} 40. Rxc5 {[%clk 00:01:13]} {[%emt 00:00:11]} Rb4 {[%clk 00:09:39]}
{[%emt 00:00:35]} 41. Rc7 {[%clk 00:00:35]} {[%emt 00:01:07]} Kg8 {[%clk
00:10:05]} {[%emt 00:00:05]} 42. Kf1 {[%clk 00:25:00]} {[%emt 00:06:01]} Kf8
{[%clk 00:40:18]} {[%emt 00:00:20]} 43. Ke1 {[%clk 00:25:25]} {[%emt 00:00:04]}
Kg8 {[%clk 00:40:42]} {[%emt 00:00:07]} 44. Kf1 {[%clk 00:25:43]} {[%emt
00:00:12]} Kf8 {[%clk 00:41:08]} {[%emt 00:00:04]} 45. Ke1 {[%clk 00:26:11]}
{[%emt 00:00:03]} Kg8 {[%clk 00:41:33]} {[%emt 00:00:04]} 46. Kf1 {[%clk
00:26:38]} {[%emt 00:00:03]} Kf8 {[%clk 00:41:35]} {[%emt 00:00:29]} 1/2-1/2

[Event "Schack-SM 2022: Mastarklassen-Elit"]
[Site "Fyrishov, Idrottsgatan 2, Uppsala, Sweden"]
[Date "2022.07.08"]
[Round "7.1"]
[White "Andersson, Tommy"]
[Black "Thorn, Eric"]
[Result "1/2-1/2"]
[TimeControl "90 minutes for 40 moves + 30 minutes for the rest of the game + 30 seconds per move from move one."]
[WhiteTitle "IM"]
[BlackTitle "FM"]
[WhiteFideId "1703803"]
[BlackFideId "1710729"]
[WhiteElo "2384"]
[BlackElo "2366"]

1. d4 {[%clk 01:30:56]} {[%emt 00:00:03]} d5 {[%clk 01:30:38]} {[%emt
00:00:22]} 2. Nf3 {[%clk 01:28:22]} {[%emt 00:03:04]} Nf6 {[%clk 01:30:56]}
{[%emt 00:00:11]} 3. g3 {[%clk 01:25:10]} {[%emt 00:03:43]} c5 {[%clk
01:31:19]} {[%emt 00:00:07]} 4. c3 {[%clk 01:23:35]} {[%emt 00:02:05]} e6
{[%clk 01:28:19]} {[%emt 00:03:29]} 5. Bg2 {[%clk 01:23:56]} {[%emt 00:00:09]}
Be7 {[%clk 01:25:05]} {[%emt 00:03:45]} 6. dxc5 {[%clk 01:13:52]} {[%emt
00:10:35]} Bxc5 {[%clk 01:22:47]} {[%emt 00:02:46]} 7. c4 {[%clk 01:03:01]}
{[%emt 00:11:22]} Qa5+ {[%clk 01:16:34]} {[%emt 00:06:43]} 8. Nc3 {[%clk
00:55:01]} {[%emt 00:08:30]} Ne4 {[%clk 01:09:33]} {[%emt 00:07:32]} 9. O-O
{[%clk 00:54:48]} {[%emt 00:00:42]} Nxc3 {[%clk 01:09:37]} {[%emt 00:00:27]} 10.
bxc3 {[%clk 00:52:26]} {[%emt 00:02:51]} Qxc3 {[%clk 00:57:33]} {[%emt
00:12:34]} 11. Bf4 {[%clk 00:30:18]} {[%emt 00:22:38]} d4 {[%clk 00:31:03]}
{[%emt 00:27:00]} 12. Rc1 {[%clk 00:22:33]} {[%emt 00:08:15]} Qb2 {[%clk
00:27:18]} {[%emt 00:04:14]} 13. Rb1 {[%clk 00:19:09]} {[%emt 00:03:56]} Qxa2
{[%clk 00:24:59]} {[%emt 00:02:48]} 14. Nxd4 {[%clk 00:17:49]} {[%emt
00:01:50]} O-O {[%clk 00:23:33]} {[%emt 00:01:55]} 15. Nb3 {[%clk 00:06:48]}
{[%emt 00:11:32]} Be7 {[%clk 00:22:25]} {[%emt 00:01:38]} 16. Ra1 {[%clk
00:06:23]} {[%emt 00:00:56]} Qb2 {[%clk 00:22:15]} {[%emt 00:00:39]} 17. Na5
{[%clk 00:06:08]} {[%emt 00:00:45]} e5 {[%clk 00:18:19]} {[%emt 00:04:26]} 18.
Be3 {[%clk 00:05:19]} {[%emt 00:01:19]} Na6 {[%clk 00:15:02]} {[%emt 00:03:48]}
19. Rb1 {[%clk 00:04:11]} {[%emt 00:01:37]} Qa2 {[%clk 00:14:37]} {[%emt
00:00:54]} 20. Nxb7 {[%clk 00:04:29]} {[%emt 00:00:14]} Bg4 {[%clk 00:10:39]}
{[%emt 00:04:27]} 21. Ra1 {[%clk 00:01:08]} {[%emt 00:03:51]} Qxc4 {[%clk
00:10:07]} {[%emt 00:01:02]} 22. Na5 {[%clk 00:01:30]} {[%emt 00:00:09]} Qxe2
{[%clk 00:06:31]} {[%emt 00:04:05]} 23. Qxe2 {[%clk 00:01:30]} {[%emt
00:00:30]} Bxe2 {[%clk 00:06:59]} {[%emt 00:00:02]} 24. Rfe1 {[%clk 00:01:44]}
{[%emt 00:00:16]} Bd3 {[%clk 00:06:04]} {[%emt 00:01:24]} 25. Bxa8 {[%clk
00:01:49]} {[%emt 00:00:26]} Rxa8 {[%clk 00:05:50]} {[%emt 00:00:45]} 26. Nc6
{[%clk 00:01:41]} {[%emt 00:00:38]} Bf6 {[%clk 00:06:10]} {[%emt 00:00:08]} 27.
Nxa7 {[%clk 00:00:50]} {[%emt 00:01:21]} e4 {[%clk 00:05:55]} {[%emt 00:00:46]}
28. Rac1 {[%clk 00:01:07]} {[%emt 00:00:13]} Nb4 {[%clk 00:03:12]} {[%emt
00:03:14]} 29. Rc8+ {[%clk 00:01:00]} {[%emt 00:00:36]} Rxc8 {[%clk 00:03:40]}
{[%emt 00:00:02]} 30. Nxc8 {[%clk 00:01:23]} {[%emt 00:00:07]} Nc2 {[%clk
00:04:07]} {[%emt 00:00:04]} 31. Rb1 {[%clk 00:00:42]} {[%emt 00:01:10]} Be5
{[%clk 00:00:52]} {[%emt 00:03:45]} 32. Bf4 {[%clk 00:00:37]} {[%emt 00:00:36]}
Nd4 {[%clk 00:00:53]} {[%emt 00:00:29]} 33. Rb6 {[%clk 00:00:35]} {[%emt
00:00:31]} Ne2+ {[%clk 00:00:36]} {[%emt 00:00:47]} 34. Kg2 {[%clk 00:01:03]}
{[%emt 00:00:02]} Nxf4+ {[%clk 00:00:49]} {[%emt 00:00:17]} 35. gxf4 {[%clk
00:01:28]} {[%emt 00:00:06]} Bxf4 {[%clk 00:01:13]} {[%emt 00:00:05]} 36. Ne7+
{[%clk 00:01:11]} {[%emt 00:00:47]} Kf8 {[%clk 00:01:36]} {[%emt 00:00:06]} 37.
Nf5 {[%clk 00:00:50]} {[%emt 00:00:52]} g6 {[%clk 00:01:30]} {[%emt 00:00:36]}
38. Ne3 {[%clk 00:01:00]} {[%emt 00:00:19]} Be2 {[%clk 00:01:35]} {[%emt
00:00:26]} 39. Rb7 {[%clk 00:01:00]} {[%emt 00:00:31]} Bf3+ {[%clk 00:01:49]}
{[%emt 00:00:16]} 40. Kg1 {[%clk 00:01:24]} {[%emt 00:00:04]} h5 {[%clk
00:01:48]} {[%emt 00:00:32]} 41. Ra7 {[%clk 00:27:30]} {[%emt 00:04:24]} h4
{[%clk 00:28:23]} {[%emt 00:03:54]} 42. Ra4 {[%clk 00:24:57]} {[%emt 00:03:04]}
Kg7 {[%clk 00:27:09]} {[%emt 00:01:43]} 43. Ng2 {[%clk 00:21:45]} {[%emt
00:03:42]} Bxg2 {[%clk 00:24:28]} {[%emt 00:03:12]} 44. Kxg2 {[%clk 00:22:13]}
{[%emt 00:00:02]} f5 {[%clk 00:24:50]} {[%emt 00:00:08]} 45. h3 {[%clk
00:21:03]} {[%emt 00:01:40]} g5 {[%clk 00:22:00]} {[%emt 00:03:19]} 46. f3
{[%clk 00:17:35]} {[%emt 00:03:59]} exf3+ {[%clk 00:16:59]} {[%emt 00:05:29]}
1/2-1/2

[Event "Schack-SM 2022: Mastarklassen-Elit"]
[Site "Fyrishov, Idrottsgatan 2, Uppsala, Sweden"]
[Date "2022.07.08"]
[Round "7.2"]
[White "Von Bahr, Oskar"]
[Black "Johansson, Jan"]
[Result "1-0"]
[TimeControl "90 minutes for 40 moves + 30 minutes for the rest of the game + 30 seconds per move from move one."]
[WhiteTitle "IM"]
[BlackTitle "IM"]
[WhiteFideId "1703250"]
[BlackFideId "1700103"]
[WhiteElo "2386"]
[BlackElo "2306"]

1. e4 {[%clk 01:30:49]} {[%emt 00:00:10]} d6 {[%clk 01:30:27]} {[%emt
00:00:29]} 2. d4 {[%clk 01:31:16]} {[%emt 00:00:07]} Nf6 {[%clk 01:30:52]}
{[%emt 00:00:06]} 3. Nc3 {[%clk 01:31:44]} {[%emt 00:00:02]} e5 {[%clk
01:31:16]} {[%emt 00:00:06]} 4. Nf3 {[%clk 01:32:04]} {[%emt 00:00:10]} Nbd7
{[%clk 01:31:39]} {[%emt 00:00:06]} 5. Rg1 {[%clk 01:31:51]} {[%emt 00:00:43]}
Be7 {[%clk 01:14:43]} {[%emt 00:17:27]} 6. g4 {[%clk 01:30:56]} {[%emt
00:01:24]} exd4 {[%clk 00:59:46]} {[%emt 00:15:28]} 7. Nxd4 {[%clk 01:25:10]}
{[%emt 00:06:15]} Nc5 {[%clk 00:57:08]} {[%emt 00:03:08]} 8. f3 {[%clk
01:19:44]} {[%emt 00:05:56]} d5 {[%clk 00:51:04]} {[%emt 00:06:35]} 9. g5
{[%clk 01:10:37]} {[%emt 00:09:36]} dxe4 {[%clk 00:40:27]} {[%emt 00:11:07]} 10.
gxf6 {[%clk 01:10:43]} {[%emt 00:00:25]} Bxf6 {[%clk 00:40:51]} {[%emt
00:00:05]} 11. Be3 {[%clk 01:03:28]} {[%emt 00:07:45]} Bh4+ {[%clk 00:36:54]}
{[%emt 00:04:27]} 12. Kd2 {[%clk 00:58:31]} {[%emt 00:05:27]} O-O {[%clk
00:34:23]} {[%emt 00:03:01]} 13. Kc1 {[%clk 00:58:32]} {[%emt 00:00:29]} Qf6
{[%clk 00:28:16]} {[%emt 00:06:37]} 14. b4 {[%clk 00:53:04]} {[%emt 00:05:58]}
exf3 {[%clk 00:23:57]} {[%emt 00:04:49]} 15. bxc5 {[%clk 00:51:12]} {[%emt
00:02:22]} f2 {[%clk 00:21:39]} {[%emt 00:02:48]} 16. Rg3 {[%clk 00:44:03]}
{[%emt 00:07:38]} Bxg3 {[%clk 00:16:02]} {[%emt 00:06:09]} 17. hxg3 {[%clk
00:44:28]} {[%emt 00:00:04]} Qe5 {[%clk 00:11:30]} {[%emt 00:05:03]} 18. Bxf2
{[%clk 00:43:42]} {[%emt 00:01:16]} Qxc5 {[%clk 00:11:49]} {[%emt 00:00:11]} 19.
Qf3 {[%clk 00:36:15]} {[%emt 00:07:56]} Bg4 {[%clk 00:06:58]} {[%emt 00:05:21]}
20. Qxg4 {[%clk 00:30:27]} {[%emt 00:06:18]} Qxc3 {[%clk 00:07:20]} {[%emt
00:00:08]} 21. Nb3 {[%clk 00:24:02]} {[%emt 00:06:56]} Rfe8 {[%clk 00:07:34]}
{[%emt 00:00:16]} 22. Be2 {[%clk 00:21:50]} {[%emt 00:02:41]} Rad8 {[%clk
00:07:35]} {[%emt 00:00:29]} 23. Bd4 {[%clk 00:17:17]} {[%emt 00:05:04]} Rxd4
{[%clk 00:04:52]} {[%emt 00:03:13]} 24. Qxd4 {[%clk 00:17:41]} {[%emt
00:00:05]} Qxd4 {[%clk 00:05:17]} {[%emt 00:00:05]} 25. Nxd4 {[%clk 00:18:07]}
{[%emt 00:00:04]} c5 {[%clk 00:05:43]} {[%emt 00:00:05]} 26. Bf3 {[%clk
00:14:42]} {[%emt 00:03:55]} cxd4 {[%clk 00:05:52]} {[%emt 00:00:20]} 27. Bxb7
{[%clk 00:15:02]} {[%emt 00:00:11]} h5 {[%clk 00:04:21]} {[%emt 00:02:01]} 28.
Kd2 {[%clk 00:12:03]} {[%emt 00:03:29]} Re3 {[%clk 00:04:34]} {[%emt 00:00:16]}
29. Rg1 {[%clk 00:10:08]} {[%emt 00:02:25]} f5 {[%clk 00:03:02]} {[%emt
00:02:03]} 30. c4 {[%clk 00:07:58]} {[%emt 00:02:39]} 1-0

[Event "Schack-SM 2022: Mastarklassen-Elit"]
[Site "Fyrishov, Idrottsgatan 2, Uppsala, Sweden"]
[Date "2022.07.08"]
[Round "7.3"]
[White "Wiedenkeller, Michael"]
[Black "Trost, Edvin"]
[Result "1-0"]
[TimeControl "90 minutes for 40 moves + 30 minutes for the rest of the game + 30 seconds per move from move one."]
[WhiteTitle "IM"]
[BlackTitle "FM"]
[WhiteFideId "1700146"]
[BlackFideId "1729519"]
[WhiteElo "2437"]
[BlackElo "2345"]

1. d4 {[%clk 01:30:47]} {[%emt 00:00:12]} Nf6 {[%clk 01:30:39]} {[%emt
00:00:21]} 2. c4 {[%clk 01:30:33]} {[%emt 00:00:45]} g6 {[%clk 01:30:37]}
{[%emt 00:00:32]} 3. g3 {[%clk 01:30:52]} {[%emt 00:00:11]} Bg7 {[%clk
01:31:02]} {[%emt 00:00:05]} 4. Bg2 {[%clk 01:31:15]} {[%emt 00:00:07]} O-O
{[%clk 01:30:41]} {[%emt 00:00:50]} 5. Nc3 {[%clk 01:31:21]} {[%emt 00:00:24]}
d6 {[%clk 01:30:57]} {[%emt 00:00:15]} 6. Nf3 {[%clk 01:31:36]} {[%emt
00:00:14]} Nc6 {[%clk 01:30:28]} {[%emt 00:01:00]} 7. O-O {[%clk 01:31:45]}
{[%emt 00:00:20]} Bd7 {[%clk 01:30:24]} {[%emt 00:00:34]} 8. Bf4 {[%clk
01:30:15]} {[%emt 00:02:00]} Ng4 {[%clk 01:28:55]} {[%emt 00:02:00]} 9. h3
{[%clk 01:18:48]} {[%emt 00:11:56]} e5 {[%clk 01:28:45]} {[%emt 00:00:40]} 10.
Bg5 {[%clk 01:09:13]} {[%emt 00:10:05]} f6 {[%clk 01:26:56]} {[%emt 00:02:20]}
11. Bc1 {[%clk 01:09:18]} {[%emt 00:00:24]} Nh6 {[%clk 01:27:10]} {[%emt
00:00:17]} 12. e4 {[%clk 01:07:05]} {[%emt 00:02:43]} Nf7 {[%clk 01:21:00]}
{[%emt 00:06:39]} 13. Be3 {[%clk 01:04:34]} {[%emt 00:03:01]} Ng5 {[%clk
01:16:08]} {[%emt 00:05:22]} 14. Nxg5 {[%clk 00:47:04]} {[%emt 00:18:00]} fxg5
{[%clk 01:15:56]} {[%emt 00:00:42]} 15. dxe5 {[%clk 00:42:59]} {[%emt
00:04:36]} dxe5 {[%clk 01:13:13]} {[%emt 00:03:13]} 16. Bxg5 {[%clk 00:40:58]}
{[%emt 00:02:31]} Qxg5 {[%clk 01:13:34]} {[%emt 00:00:08]} 17. Qxd7 {[%clk
00:41:20]} {[%emt 00:00:08]} Rad8 {[%clk 01:11:58]} {[%emt 00:02:07]} 18. Qe6+
{[%clk 00:34:01]} {[%emt 00:07:49]} Kh8 {[%clk 01:10:23]} {[%emt 00:02:04]} 19.
Rad1 {[%clk 00:29:29]} {[%emt 00:05:02]} Rd2 {[%clk 01:10:12]} {[%emt
00:00:42]} 20. f4 {[%clk 00:23:06]} {[%emt 00:06:53]} Qd8 {[%clk 01:10:29]}
{[%emt 00:00:13]} 21. f5 {[%emt 00:06:19]} Rxd1 {[%clk 01:01:27]} {[%emt
00:09:17]} 22. Rxd1 {[%clk 00:17:43]} {[%emt 00:00:19]} Nd4 {[%clk 01:01:19]}
{[%emt 00:00:38]} 23. Qd5 {[%clk 00:17:50]} {[%emt 00:00:22]} Qg5 {[%clk
01:01:33]} {[%emt 00:00:17]} 24. Kh2 {[%clk 00:16:27]} {[%emt 00:01:53]} h5
{[%clk 00:45:40]} {[%emt 00:16:22]} 25. h4 {[%clk 00:14:59]} {[%emt 00:01:58]}
Qe3 {[%clk 00:45:53]} {[%emt 00:00:17]} 26. Rf1 {[%clk 00:13:40]} {[%emt
00:01:49]} g5 {[%clk 00:44:33]} {[%emt 00:01:51]} 27. f6 {[%clk 00:09:51]}
{[%emt 00:04:18]} Bxf6 {[%clk 00:44:34]} {[%emt 00:00:30]} 28. Rxf6 {[%clk
00:09:57]} {[%emt 00:00:24]} Rxf6 {[%clk 00:44:41]} {[%emt 00:00:23]} 29. Qd8+
{[%clk 00:10:22]} {[%emt 00:00:05]} Kh7 {[%clk 00:44:44]} {[%emt 00:00:27]} 30.
Qe7+ {[%clk 00:09:02]} {[%emt 00:01:48]} Kg6 {[%clk 00:44:05]} {[%emt
00:01:11]} 31. Qxf6+ {[%clk 00:09:22]} {[%emt 00:00:10]} 1-0